[Event "Titled Tuesday Blitz December 27 Early 2022"]
[White "Torres Dominguez, David"]
[Black "Tymrakiewicz, Rafal"]
[WhiteFideId "2220857"]
[BlackFideId "1108832"]
[WhiteElo "1994"]
[BlackElo "2144"]
[Result "1-0"]
[Round "07"]
[TimeControl "180+2"]
[Date "2022.12.27"]
[WhiteClock "0:00:15"]
[BlackClock "0:00:07"]

1. e4 {[%clk 0:02:40]}  Nf6 {[%clk 0:02:59]} 2. Nc3 {[%clk 0:02:36]}  d5 {[%clk 0:02:57]} 3. d3 {[%clk 0:02:37]}  e5 {[%clk 0:02:53]} 4. Bg5 {[%clk 0:02:35]}  Bb4 {[%clk 0:02:50]} 5. exd5 {[%clk 0:02:26]}  Qxd5 {[%clk 0:02:44]} 6. Nf3 {[%clk 0:02:23]}  Nc6 {[%clk 0:02:37]} 7. Be2 {[%clk 0:02:16]}  h6 {[%clk 0:02:36]} 8. Bxf6 {[%clk 0:02:05]}  gxf6 {[%clk 0:02:37]} 9. O-O {[%clk 0:02:00]}  Qe6 {[%clk 0:02:23]} 10. d4 {[%clk 0:01:56]}  Qf5 {[%clk 0:01:59]} 11. Bd3 {[%clk 0:01:50]}  Qh5 {[%clk 0:01:58]} 12. Nd5 {[%clk 0:01:43]}  Be7 {[%clk 0:01:54]} 13. Nxc7+ {[%clk 0:01:39]}  Kf8 {[%clk 0:01:54]} 14. Nxa8 {[%clk 0:01:39]}  Rg8 {[%clk 0:01:54]} 15. d5 {[%clk 0:01:35]}  Bh3 {[%clk 0:01:25]} 16. Ne1 {[%clk 0:01:30]}  Bg4 {[%clk 0:01:25]} 17. f3 {[%clk 0:01:25]}  Bc5+ {[%clk 0:01:23]} 18. Kh1 {[%clk 0:01:21]}  Bd7 {[%clk 0:01:17]} 19. dxc6 {[%clk 0:01:16]}  Bxc6 {[%clk 0:01:17]} 20. Be4 {[%clk 0:01:06]}  Bb5 {[%clk 0:00:48]} 21. Nd3 {[%clk 0:00:56]}  Be3 {[%clk 0:00:46]} 22. Nc7 {[%clk 0:00:52]}  Bd7 {[%clk 0:00:45]} 23. Nxe5 {[%clk 0:00:43]}  Qxe5 {[%clk 0:00:13]} 24. Qxd7 {[%clk 0:00:42]}  Kg7 {[%clk 0:00:09]} 25. Rae1 {[%clk 0:00:27]}  Qh5 {[%clk 0:00:08]} 26. Rxe3 {[%clk 0:00:23]}  Kh8 {[%clk 0:00:05]} 27. Qd6 {[%clk 0:00:18]}  Qg5 {[%clk 0:00:05]} 28. Re2 {[%clk 0:00:17]}  f5 {[%clk 0:00:05]} 29. Qd4+ {[%clk 0:00:15]}  Kh7 {[%clk 0:00:04]} 30. Bxf5+ {[%clk 0:00:14]}  Qxf5 {[%clk 0:00:04]} 31. Qe4 {[%clk 0:00:15]}  Kg6 {[%clk 0:00:04]} 32. Qxf5+ {[%clk 0:00:14]}  Kxf5 {[%clk 0:00:05]} 33. Nd5 {[%clk 0:00:14]}  Rc8 {[%clk 0:00:06]} 34. Ne7+ {[%clk 0:00:14]}  Kf4 {[%clk 0:00:06]} 35. Nxc8 {[%clk 0:00:14]}  f5 {[%clk 0:00:07]} 36. Re6 {[%clk 0:00:14]}  h5 {[%clk 0:00:07]} 37. g3+ {[%clk 0:00:14]}  Kg5 {[%clk 0:00:07]} 38. h4# {[%clk 0:00:15]} 1-0


[Site "https://www.chess.com"]

[Event "Titled Tuesday Blitz December 27 Early 2022"]
[White "Turzo, Attila"]
[Black "Matinian, Nikita"]
[WhiteFideId "704954"]
[BlackFideId "24129100"]
[WhiteElo "2279"]
[BlackElo "2407"]
[Result "1/2-1/2"]
[Round "07"]
[TimeControl "180+2"]
[Date "2022.12.27"]
[WhiteClock "0:00:07"]
[BlackClock "0:00:05"]

1. d4 {[%clk 0:02:40]}  Nf6 {[%clk 0:02:58]} 2. c4 {[%clk 0:02:39]}  e6 {[%clk 0:02:59]} 3. Nf3 {[%clk 0:02:39]}  Bb4+ {[%clk 0:02:59]} 4. Bd2 {[%clk 0:02:39]}  a5 {[%clk 0:03:00]} 5. e3 {[%clk 0:02:39]}  b6 {[%clk 0:02:58]} 6. Bd3 {[%clk 0:02:38]}  Bb7 {[%clk 0:02:58]} 7. O-O {[%clk 0:02:38]}  O-O {[%clk 0:02:58]} 8. a3 {[%clk 0:02:34]}  Bxd2 {[%clk 0:02:54]} 9. Nbxd2 {[%clk 0:02:35]}  d6 {[%clk 0:02:52]} 10. b3 {[%clk 0:02:34]}  Nbd7 {[%clk 0:02:52]} 11. b4 {[%clk 0:02:35]}  e5 {[%clk 0:02:51]} 12. d5 {[%clk 0:02:33]}  Qe7 {[%clk 0:02:49]} 13. e4 {[%clk 0:02:32]}  Nh5 {[%clk 0:02:48]} 14. g3 {[%clk 0:02:31]}  g6 {[%clk 0:02:48]} 15. Nh4 {[%clk 0:02:26]}  Ng7 {[%clk 0:02:44]} 16. Qc2 {[%clk 0:02:26]}  Ra7 {[%clk 0:02:22]} 17. Ng2 {[%clk 0:02:16]}  f5 {[%clk 0:02:20]} 18. f4 {[%clk 0:02:12]}  fxe4 {[%clk 0:02:05]} 19. Bxe4 {[%clk 0:02:04]}  Nf6 {[%clk 0:02:05]} 20. Bd3 {[%clk 0:02:00]}  Bc8 {[%clk 0:01:25]} 21. Rae1 {[%clk 0:01:55]}  axb4 {[%clk 0:01:22]} 22. axb4 {[%clk 0:01:55]}  Bh3 {[%clk 0:01:18]} 23. fxe5 {[%clk 0:01:52]}  dxe5 {[%clk 0:01:19]} 24. Qb2 {[%clk 0:01:37]}  Ng4 {[%clk 0:01:06]} 25. Ne4 {[%clk 0:01:03]}  Nf5 {[%clk 0:00:56]} 26. c5 {[%clk 0:01:01]}  Bxg2 {[%clk 0:00:52]} 27. Qxg2 {[%clk 0:00:57]}  Nge3 {[%clk 0:00:51]} 28. Qd2 {[%clk 0:00:48]}  Nxf1 {[%clk 0:00:50]} 29. Rxf1 {[%clk 0:00:48]}  bxc5 {[%clk 0:00:48]} 30. bxc5 {[%clk 0:00:48]}  Ra4 {[%clk 0:00:42]} 31. d6 {[%clk 0:00:40]}  cxd6 {[%clk 0:00:39]} 32. cxd6 {[%clk 0:00:41]}  Qa7+ {[%clk 0:00:39]} 33. Kh1 {[%clk 0:00:40]}  Rd4 {[%clk 0:00:38]} 34. Qe2 {[%clk 0:00:29]}  Qa3 {[%clk 0:00:17]} 35. Bc4+ {[%clk 0:00:27]}  Kg7 {[%clk 0:00:15]} 36. Ng5 {[%clk 0:00:27]}  Rf6 {[%clk 0:00:05]} 37. Ne6+ {[%clk 0:00:24]}  Rxe6 {[%clk 0:00:05]} 38. Bxe6 {[%clk 0:00:25]}  Qxd6 {[%clk 0:00:05]} 39. Bxf5 {[%clk 0:00:24]}  gxf5 {[%clk 0:00:05]} 40. Rxf5 {[%clk 0:00:24]}  Qd5+ {[%clk 0:00:04]} 41. Qf3 {[%clk 0:00:18]}  Rd1+ {[%clk 0:00:04]} 42. Kg2 {[%clk 0:00:19]}  Rd2+ {[%clk 0:00:04]} 43. Kh3 {[%clk 0:00:19]}  Qxf3 {[%clk 0:00:03]} 44. Rxf3 {[%clk 0:00:19]}  e4 {[%clk 0:00:03]} 45. Re3 {[%clk 0:00:18]}  Rd4 {[%clk 0:00:03]} 46. Kg4 {[%clk 0:00:19]}  Kg6 {[%clk 0:00:04]} 47. Kf4 {[%clk 0:00:19]}  Rd2 {[%clk 0:00:04]} 48. h4 {[%clk 0:00:19]}  Rf2+ {[%clk 0:00:05]} 49. Kg4 {[%clk 0:00:16]}  Rf6 {[%clk 0:00:05]} 50. Rxe4 {[%clk 0:00:17]}  h5+ {[%clk 0:00:05]} 51. Kh3 {[%clk 0:00:16]}  Ra6 {[%clk 0:00:06]} 52. Rb4 {[%clk 0:00:16]}  Rd6 {[%clk 0:00:06]} 53. Kg2 {[%clk 0:00:15]}  Rd2+ {[%clk 0:00:06]} 54. Kf3 {[%clk 0:00:15]}  Rd6 {[%clk 0:00:06]} 55. Kf4 {[%clk 0:00:15]}  Rf6+ {[%clk 0:00:06]} 56. Ke3 {[%clk 0:00:15]}  Rc6 {[%clk 0:00:07]} 57. Kf4 {[%clk 0:00:14]}  Rf6+ {[%clk 0:00:07]} 58. Ke5 {[%clk 0:00:12]}  Rc6 {[%clk 0:00:07]} 59. Rd4 {[%clk 0:00:11]}  Ra6 {[%clk 0:00:07]} 60. Kf4 {[%clk 0:00:06]}  Rf6+ {[%clk 0:00:05]} 61. Ke3 {[%clk 0:00:06]}  Re6+ {[%clk 0:00:05]} 62. Re4 {[%clk 0:00:06]}  Ra6 {[%clk 0:00:06]} 63. Kf3 {[%clk 0:00:06]}  Rf6+ {[%clk 0:00:06]} 64. Kg2 {[%clk 0:00:06]}  Ra6 {[%clk 0:00:07]} 65. Kh3 {[%clk 0:00:07]}  Rb6 {[%clk 0:00:05]} 66. Rd4 {[%clk 0:00:07]}  Ra6 {[%clk 0:00:06]} 67. g4 {[%clk 0:00:06]}  Ra3+ {[%clk 0:00:05]} 68. Kg2 {[%clk 0:00:07]}  hxg4 {[%clk 0:00:05]} 69. Rxg4+ {[%clk 0:00:07]}  Kh5 {[%clk 0:00:05]} 70. Rb4 {[%clk 0:00:07]} 1/2-1/2


[Site "https://www.chess.com"]

[Event "Titled Tuesday Blitz December 27 Early 2022"]
[White "Tworuszka, Michal"]
[Black "Silva, Miguel Antonio Neto"]
[WhiteFideId "1117858"]
[BlackFideId "1911929"]
[WhiteElo "2260"]
[BlackElo "2204"]
[Result "1-0"]
[Round "07"]
[TimeControl "180+2"]
[Date "2022.12.27"]
[WhiteClock "0:00:07"]
[BlackClock "0:00:06"]

1. d4 {[%clk 0:03:00]}  Nf6 {[%clk 0:02:57]} 2. Nf3 {[%clk 0:03:00]}  d5 {[%clk 0:02:57]} 3. c4 {[%clk 0:02:58]}  e6 {[%clk 0:02:55]} 4. g3 {[%clk 0:02:56]}  Be7 {[%clk 0:02:50]} 5. Bg2 {[%clk 0:02:56]}  O-O {[%clk 0:02:51]} 6. O-O {[%clk 0:02:56]}  dxc4 {[%clk 0:02:51]} 7. Qc2 {[%clk 0:02:55]}  a6 {[%clk 0:02:51]} 8. Qxc4 {[%clk 0:02:52]}  b5 {[%clk 0:02:51]} 9. Qc2 {[%clk 0:02:52]}  Bb7 {[%clk 0:02:51]} 10. Bd2 {[%clk 0:02:52]}  Be4 {[%clk 0:02:51]} 11. Qc1 {[%clk 0:02:52]}  c6 {[%clk 0:02:50]} 12. Be3 {[%clk 0:02:26]}  Nbd7 {[%clk 0:02:47]} 13. Nbd2 {[%clk 0:02:19]}  Bd5 {[%clk 0:02:46]} 14. Nb3 {[%clk 0:02:17]}  Rc8 {[%clk 0:02:41]} 15. Nc5 {[%clk 0:02:15]}  Bxc5 {[%clk 0:02:33]} 16. dxc5 {[%clk 0:02:14]}  a5 {[%clk 0:02:33]} 17. Rd1 {[%clk 0:02:14]}  Qe7 {[%clk 0:02:26]} 18. Qc2 {[%clk 0:02:01]}  Rfd8 {[%clk 0:02:19]} 19. Rac1 {[%clk 0:01:59]}  h6 {[%clk 0:02:17]} 20. b3 {[%clk 0:01:54]}  Ra8 {[%clk 0:02:11]} 21. Bf4 {[%clk 0:01:49]}  a4 {[%clk 0:02:07]} 22. b4 {[%clk 0:01:41]}  e5 {[%clk 0:02:04]} 23. Be3 {[%clk 0:01:36]}  Nf8 {[%clk 0:01:54]} 24. Nh4 {[%clk 0:01:28]}  Qe6 {[%clk 0:01:23]} 25. Bxd5 {[%clk 0:01:10]}  Nxd5 {[%clk 0:01:21]} 26. a3 {[%clk 0:01:04]}  Nxe3 {[%clk 0:01:20]} 27. fxe3 {[%clk 0:01:03]}  g6 {[%clk 0:01:18]} 28. e4 {[%clk 0:00:57]}  Qe7 {[%clk 0:01:11]} 29. Rxd8 {[%clk 0:00:51]}  Rxd8 {[%clk 0:01:11]} 30. Rd1 {[%clk 0:00:51]}  Ne6 {[%clk 0:01:11]} 31. Nf3 {[%clk 0:00:33]}  f6 {[%clk 0:01:08]} 32. Rxd8+ {[%clk 0:00:30]}  Qxd8 {[%clk 0:01:08]} 33. Qd3 {[%clk 0:00:30]}  Qe7 {[%clk 0:01:01]} 34. Kf2 {[%clk 0:00:21]}  Kf7 {[%clk 0:01:01]} 35. h4 {[%clk 0:00:19]}  g5 {[%clk 0:01:00]} 36. hxg5 {[%clk 0:00:18]}  hxg5 {[%clk 0:01:01]} 37. Qd1 {[%clk 0:00:17]}  Ng7 {[%clk 0:00:53]} 38. Qh1 {[%clk 0:00:14]}  Qe6 {[%clk 0:00:52]} 39. Qh8 {[%clk 0:00:12]}  Qe8 {[%clk 0:00:41]} 40. Qh7 {[%clk 0:00:12]}  Qd7 {[%clk 0:00:33]} 41. Kg2 {[%clk 0:00:08]}  Qd1 {[%clk 0:00:26]} 42. Kf2 {[%clk 0:00:08]}  g4 {[%clk 0:00:22]} 43. Nh2 {[%clk 0:00:07]}  Qd4+ {[%clk 0:00:21]} 44. Kf1 {[%clk 0:00:06]}  Qa1+ {[%clk 0:00:16]} 45. Kf2 {[%clk 0:00:06]}  Qxa3 {[%clk 0:00:15]} 46. Nxg4 {[%clk 0:00:06]}  Qxb4 {[%clk 0:00:12]} 47. Nh6+ {[%clk 0:00:06]}  Ke6 {[%clk 0:00:12]} 48. Qxg7 {[%clk 0:00:06]}  Qxc5+ {[%clk 0:00:12]} 49. Kg2 {[%clk 0:00:06]}  Qe7 {[%clk 0:00:11]} 50. Qg4+ {[%clk 0:00:05]}  Kd6 {[%clk 0:00:06]} 51. Nf5+ {[%clk 0:00:05]}  Kc5 {[%clk 0:00:06]} 52. Nxe7 {[%clk 0:00:06]}  b4 {[%clk 0:00:06]} 53. Qg7 {[%clk 0:00:06]}  b3 {[%clk 0:00:06]} 54. Qxf6 {[%clk 0:00:06]}  b2 {[%clk 0:00:06]} 55. Qxe5+ {[%clk 0:00:07]}  Kb4 {[%clk 0:00:06]} 56. Qxb2+ {[%clk 0:00:07]} 1-0


[Site "https://www.chess.com"]

[Event "Titled Tuesday Blitz December 27 Early 2022"]
[White "Vakhlamov, Igor L."]
[Black "Sai Krishna G V"]
[WhiteFideId "24126748"]
[BlackFideId "5028280"]
[WhiteElo "2413"]
[BlackElo "2384"]
[Result "1-0"]
[Round "07"]
[TimeControl "180+2"]
[Date "2022.12.27"]
[WhiteClock "0:00:18"]
[BlackClock "0:01:01"]

1. e4 {[%clk 0:03:00]}  e5 {[%clk 0:02:53]} 2. Nf3 {[%clk 0:03:00]}  Nc6 {[%clk 0:02:53]} 3. Nc3 {[%clk 0:03:00]}  Nf6 {[%clk 0:02:53]} 4. Bb5 {[%clk 0:03:01]}  Bb4 {[%clk 0:02:53]} 5. Nd5 {[%clk 0:03:00]}  Nxd5 {[%clk 0:02:49]} 6. exd5 {[%clk 0:03:01]}  Nd4 {[%clk 0:02:49]} 7. Nxd4 {[%clk 0:03:01]}  exd4 {[%clk 0:02:50]} 8. a3 {[%clk 0:03:02]}  Be7 {[%clk 0:02:43]} 9. O-O {[%clk 0:02:59]}  O-O {[%clk 0:02:43]} 10. b4 {[%clk 0:02:55]}  c6 {[%clk 0:02:42]} 11. Bc4 {[%clk 0:02:54]}  b5 {[%clk 0:02:41]} 12. Bd3 {[%clk 0:02:44]}  cxd5 {[%clk 0:02:26]} 13. Bb2 {[%clk 0:02:40]}  Qb6 {[%clk 0:02:25]} 14. Qh5 {[%clk 0:02:00]}  f5 {[%clk 0:02:25]} 15. Rae1 {[%clk 0:01:50]}  Rf7 {[%clk 0:02:24]} 16. Re5 {[%clk 0:01:25]}  Bb7 {[%clk 0:02:15]} 17. Rfe1 {[%clk 0:01:22]}  g6 {[%clk 0:02:03]} 18. Qh6 {[%clk 0:01:09]}  Bf8 {[%clk 0:01:51]} 19. Qh4 {[%clk 0:00:51]}  Bg7 {[%clk 0:01:45]} 20. Bxd4 {[%clk 0:00:48]}  Qd8 {[%clk 0:01:28]} 21. Qxd8+ {[%clk 0:00:42]}  Rxd8 {[%clk 0:01:29]} 22. Re8+ {[%clk 0:00:42]}  Rxe8 {[%clk 0:01:27]} 23. Rxe8+ {[%clk 0:00:43]}  Rf8 {[%clk 0:01:27]} 24. Rxf8+ {[%clk 0:00:37]}  Kxf8 {[%clk 0:01:28]} 25. Bxg7+ {[%clk 0:00:28]}  Kxg7 {[%clk 0:01:29]} 26. Bxb5 {[%clk 0:00:28]}  d6 {[%clk 0:01:29]} 27. d4 {[%clk 0:00:29]}  Kf6 {[%clk 0:01:26]} 28. f4 {[%clk 0:00:28]}  g5 {[%clk 0:01:26]} 29. g3 {[%clk 0:00:26]}  Kg6 {[%clk 0:01:23]} 30. Kf2 {[%clk 0:00:26]}  gxf4 {[%clk 0:01:18]} 31. gxf4 {[%clk 0:00:27]}  Kh5 {[%clk 0:01:19]} 32. Kg3 {[%clk 0:00:27]}  Kg6 {[%clk 0:01:17]} 33. Bd3 {[%clk 0:00:25]}  Bc6 {[%clk 0:01:15]} 34. b5 {[%clk 0:00:22]}  Bd7 {[%clk 0:01:15]} 35. a4 {[%clk 0:00:23]}  Kf6 {[%clk 0:01:13]} 36. Kh4 {[%clk 0:00:20]}  Kg6 {[%clk 0:01:12]} 37. a5 {[%clk 0:00:20]}  Bc8 {[%clk 0:01:11]} 38. b6 {[%clk 0:00:20]}  axb6 {[%clk 0:01:12]} 39. axb6 {[%clk 0:00:20]}  Bb7 {[%clk 0:01:12]} 40. Bb5 {[%clk 0:00:20]}  Kh6 {[%clk 0:01:09]} 41. Bd7 {[%clk 0:00:19]}  Kg6 {[%clk 0:01:09]} 42. Be6 {[%clk 0:00:19]}  Kf6 {[%clk 0:01:08]} 43. Bd7 {[%clk 0:00:19]}  Kg6 {[%clk 0:01:08]} 44. Bb5 {[%clk 0:00:17]}  Kh6 {[%clk 0:01:08]} 45. Be8 {[%clk 0:00:16]}  Ba8 {[%clk 0:01:05]} 46. Bf7 {[%clk 0:00:15]}  Bb7 {[%clk 0:01:02]} 47. c3 {[%clk 0:00:13]}  Kg7 {[%clk 0:01:01]} 48. Bh5 {[%clk 0:00:11]}  Kf6 {[%clk 0:01:00]} 49. Be2 {[%clk 0:00:10]}  Kg6 {[%clk 0:01:01]} 50. Kg3 {[%clk 0:00:09]}  Kf6 {[%clk 0:01:01]} 51. Kf2 {[%clk 0:00:10]}  Kg6 {[%clk 0:00:59]} 52. Ke3 {[%clk 0:00:10]}  Kf6 {[%clk 0:00:59]} 53. Kd2 {[%clk 0:00:11]}  Kg6 {[%clk 0:00:58]} 54. Kc2 {[%clk 0:00:11]}  Kf6 {[%clk 0:00:58]} 55. Kb3 {[%clk 0:00:12]}  Kg6 {[%clk 0:00:56]} 56. Kb4 {[%clk 0:00:12]}  h5 {[%clk 0:00:56]} 57. h4 {[%clk 0:00:10]}  Kh6 {[%clk 0:00:54]} 58. Ka5 {[%clk 0:00:10]}  Kg6 {[%clk 0:00:53]} 59. Ba6 {[%clk 0:00:10]}  Bc6 {[%clk 0:00:53]} 60. b7 {[%clk 0:00:10]}  Bxb7 {[%clk 0:00:53]} 61. Bxb7 {[%clk 0:00:11]}  Kf6 {[%clk 0:00:52]} 62. Bxd5 {[%clk 0:00:12]}  Ke7 {[%clk 0:00:53]} 63. Kb6 {[%clk 0:00:13]}  Kd8 {[%clk 0:00:54]} 64. Kc6 {[%clk 0:00:13]}  Ke7 {[%clk 0:00:55]} 65. Kc7 {[%clk 0:00:14]}  Kf6 {[%clk 0:00:56]} 66. Kxd6 {[%clk 0:00:14]}  Kg7 {[%clk 0:00:56]} 67. c4 {[%clk 0:00:15]}  Kh6 {[%clk 0:00:57]} 68. c5 {[%clk 0:00:16]}  Kg6 {[%clk 0:00:58]} 69. c6 {[%clk 0:00:17]}  Kh6 {[%clk 0:00:58]} 70. c7 {[%clk 0:00:18]}  Kg6 {[%clk 0:00:59]} 71. c8=Q {[%clk 0:00:18]}  Kh6 {[%clk 0:01:00]} 72. Qe6+ {[%clk 0:00:18]}  Kg7 {[%clk 0:01:00]} 73. Ke5 {[%clk 0:00:18]}  Kh8 {[%clk 0:01:01]} 74. Qg8# {[%clk 0:00:18]} 1-0


[Site "https://www.chess.com"]

[Event "Titled Tuesday Blitz December 27 Early 2022"]
[White "Vargas, Mauricio"]
[Black "Jiganchine, Roman"]
[WhiteFideId "4404572"]
[BlackFideId "2603667"]
[WhiteElo "2035"]
[BlackElo "2205"]
[Result "0-1"]
[Round "07"]
[TimeControl "180+2"]
[Date "2022.12.27"]
[WhiteClock "0:00:05"]
[BlackClock "0:00:13"]

1. e4 {[%clk 0:03:00]}  c6 {[%clk 0:02:54]} 2. d4 {[%clk 0:03:00]}  d5 {[%clk 0:02:54]} 3. e5 {[%clk 0:03:00]}  Bf5 {[%clk 0:02:53]} 4. g4 {[%clk 0:02:55]}  Bd7 {[%clk 0:02:48]} 5. f4 {[%clk 0:02:50]}  h5 {[%clk 0:02:37]} 6. g5 {[%clk 0:02:43]}  Bf5 {[%clk 0:02:34]} 7. Ne2 {[%clk 0:02:41]}  g6 {[%clk 0:02:32]} 8. Bg2 {[%clk 0:02:40]}  h4 {[%clk 0:02:29]} 9. O-O {[%clk 0:02:34]}  e6 {[%clk 0:02:26]} 10. h3 {[%clk 0:02:34]}  c5 {[%clk 0:02:25]} 11. c3 {[%clk 0:02:29]}  Nc6 {[%clk 0:02:24]} 12. Be3 {[%clk 0:02:25]}  cxd4 {[%clk 0:02:16]} 13. Nxd4 {[%clk 0:02:22]}  Nxd4 {[%clk 0:02:08]} 14. Bxd4 {[%clk 0:02:21]}  Ne7 {[%clk 0:02:08]} 15. Nd2 {[%clk 0:02:19]}  Nc6 {[%clk 0:02:08]} 16. Be3 {[%clk 0:02:16]}  Bd3 {[%clk 0:01:45]} 17. Rf2 {[%clk 0:02:11]}  Be7 {[%clk 0:01:43]} 18. Nf3 {[%clk 0:02:09]}  Be4 {[%clk 0:01:39]} 19. Qb3 {[%clk 0:01:47]}  Qd7 {[%clk 0:01:33]} 20. Bf1 {[%clk 0:01:41]}  Kf8 {[%clk 0:01:18]} 21. Bb5 {[%clk 0:01:40]}  Kg7 {[%clk 0:01:16]} 22. Rd1 {[%clk 0:01:28]}  Qc7 {[%clk 0:01:13]} 23. Qa4 {[%clk 0:01:24]}  a6 {[%clk 0:01:05]} 24. Bf1 {[%clk 0:01:06]}  b5 {[%clk 0:01:02]} 25. Qb3 {[%clk 0:01:04]}  Na5 {[%clk 0:01:02]} 26. Nd4 {[%clk 0:00:31]}  Nxb3 {[%clk 0:00:59]} 27. Nxb3 {[%clk 0:00:31]}  a5 {[%clk 0:00:59]} 28. Nd4 {[%clk 0:00:29]}  b4 {[%clk 0:00:54]} 29. Nb5 {[%clk 0:00:20]}  Qc6 {[%clk 0:00:47]} 30. cxb4 {[%clk 0:00:19]}  axb4 {[%clk 0:00:43]} 31. Rc1 {[%clk 0:00:19]}  Qd7 {[%clk 0:00:25]} 32. b3 {[%clk 0:00:16]}  Rac8 {[%clk 0:00:22]} 33. Rd1 {[%clk 0:00:16]}  Bc5 {[%clk 0:00:20]} 34. Bd2 {[%clk 0:00:12]}  Bxf2+ {[%clk 0:00:18]} 35. Kxf2 {[%clk 0:00:12]}  Rc2 {[%clk 0:00:18]} 36. Ke3 {[%clk 0:00:11]}  Rhc8 {[%clk 0:00:16]} 37. Bxb4 {[%clk 0:00:09]}  Bf5 {[%clk 0:00:15]} 38. Nd6 {[%clk 0:00:08]}  Qa7+ {[%clk 0:00:15]} 39. Kf3 {[%clk 0:00:06]}  Be4+ {[%clk 0:00:15]} 40. Kg4 {[%clk 0:00:05]}  Bf5+ {[%clk 0:00:14]} 41. Kxh4 {[%clk 0:00:05]}  Qf2# {[%clk 0:00:13]} 0-1


[Site "https://www.chess.com"]

[Event "Titled Tuesday Blitz December 27 Early 2022"]
[White "Vargas Pereda, Jesus Manue"]
[Black "Dilmukhametov, Artur"]
[WhiteFideId "5115710"]
[BlackFideId "24179922"]
[WhiteElo "1851"]
[BlackElo "2276"]
[Result "0-1"]
[Round "07"]
[TimeControl "180+2"]
[Date "2022.12.27"]
[WhiteClock "0:01:40"]
[BlackClock "0:02:17"]

1. d4 {[%clk 0:02:55]}  Nf6 {[%clk 0:02:58]} 2. Nf3 {[%clk 0:02:46]}  g6 {[%clk 0:02:55]} 3. c4 {[%clk 0:02:44]}  Bg7 {[%clk 0:02:52]} 4. Nc3 {[%clk 0:02:42]}  d6 {[%clk 0:02:52]} 5. g3 {[%clk 0:02:42]}  O-O {[%clk 0:02:52]} 6. Bg2 {[%clk 0:02:42]}  Nbd7 {[%clk 0:02:48]} 7. e4 {[%clk 0:02:41]}  e5 {[%clk 0:02:46]} 8. d5 {[%clk 0:02:40]}  Ne8 {[%clk 0:02:44]} 9. O-O {[%clk 0:02:40]}  a5 {[%clk 0:02:42]} 10. b3 {[%clk 0:02:38]}  Nc5 {[%clk 0:02:42]} 11. a3 {[%clk 0:02:37]}  f5 {[%clk 0:02:38]} 12. Ng5 {[%clk 0:02:13]}  f4 {[%clk 0:02:31]} 13. b4 {[%clk 0:02:12]}  axb4 {[%clk 0:02:30]} 14. Nb5 {[%clk 0:01:58]}  Qxg5 {[%clk 0:02:24]} 15. h4 {[%clk 0:01:40]}  Qe7 {[%clk 0:02:17]} 0-1


[Site "https://www.chess.com"]

[Event "Titled Tuesday Blitz December 27 Early 2022"]
[White "Vasques, Antonio Pedro Freixial"]
[Black "Flis, Pawel"]
[WhiteFideId "1908332"]
[BlackFideId "1112864"]
[WhiteElo "2214"]
[BlackElo "1879"]
[Result "1-0"]
[Round "07"]
[TimeControl "180+2"]
[Date "2022.12.27"]
[WhiteClock "0:02:11"]
[BlackClock "0:01:03"]

1. e4 {[%clk 0:03:00]}  c5 {[%clk 0:02:57]} 2. Nc3 {[%clk 0:03:00]}  Nc6 {[%clk 0:02:54]} 3. Bb5 {[%clk 0:03:00]}  Nd4 {[%clk 0:02:53]} 4. Nf3 {[%clk 0:03:01]}  Nxb5 {[%clk 0:02:51]} 5. Nxb5 {[%clk 0:03:02]}  e6 {[%clk 0:02:50]} 6. O-O {[%clk 0:03:02]}  a6 {[%clk 0:02:47]} 7. Nc3 {[%clk 0:03:02]}  d6 {[%clk 0:02:43]} 8. d4 {[%clk 0:03:02]}  cxd4 {[%clk 0:02:43]} 9. Qxd4 {[%clk 0:03:03]}  Nf6 {[%clk 0:02:41]} 10. Bf4 {[%clk 0:03:04]}  Be7 {[%clk 0:02:27]} 11. Bg3 {[%clk 0:03:03]}  Nh5 {[%clk 0:02:18]} 12. Rad1 {[%clk 0:02:56]}  O-O {[%clk 0:02:16]} 13. Bxd6 {[%clk 0:02:55]}  Bxd6 {[%clk 0:02:10]} 14. Qxd6 {[%clk 0:02:55]}  Qf6 {[%clk 0:02:04]} 15. Na4 {[%clk 0:02:23]}  b5 {[%clk 0:02:01]} 16. Nb6 {[%clk 0:02:23]}  Rb8 {[%clk 0:02:01]} 17. Qxb8 {[%clk 0:02:22]}  Nf4 {[%clk 0:01:36]} 18. Nxc8 {[%clk 0:02:12]}  h6 {[%clk 0:01:18]} 19. e5 {[%clk 0:02:12]}  Ne2+ {[%clk 0:01:03]} 20. Kh1 {[%clk 0:02:11]} 1-0


[Site "https://www.chess.com"]

[Event "Titled Tuesday Blitz December 27 Early 2022"]
[White "Vlassov, Nikolai"]
[Black "Zherebtsova, Alexandra"]
[WhiteFideId "4103360"]
[BlackFideId "24129518"]
[WhiteElo "2283"]
[BlackElo "2155"]
[Result "1-0"]
[Round "07"]
[TimeControl "180+2"]
[Date "2022.12.27"]
[WhiteClock "0:00:17"]
[BlackClock "0:00:04"]

1. e4 {[%clk 0:03:00]}  e5 {[%clk 0:02:59]} 2. Bc4 {[%clk 0:03:00]}  Nf6 {[%clk 0:02:58]} 3. d3 {[%clk 0:03:00]}  Nc6 {[%clk 0:02:58]} 4. Nf3 {[%clk 0:02:59]}  h6 {[%clk 0:02:50]} 5. Nc3 {[%clk 0:02:42]}  d6 {[%clk 0:02:45]} 6. h3 {[%clk 0:02:27]}  Na5 {[%clk 0:02:34]} 7. Be3 {[%clk 0:02:25]}  c6 {[%clk 0:02:26]} 8. Qe2 {[%clk 0:02:24]}  Qc7 {[%clk 0:02:22]} 9. d4 {[%clk 0:02:16]}  Nxc4 {[%clk 0:02:00]} 10. Qxc4 {[%clk 0:02:16]}  Nxe4 {[%clk 0:01:28]} 11. Nxe4 {[%clk 0:02:03]}  d5 {[%clk 0:01:28]} 12. Qe2 {[%clk 0:01:49]}  dxe4 {[%clk 0:01:22]} 13. Nxe5 {[%clk 0:01:50]}  Be6 {[%clk 0:01:09]} 14. Bf4 {[%clk 0:01:46]}  Qa5+ {[%clk 0:01:08]} 15. c3 {[%clk 0:01:45]}  Bd5 {[%clk 0:00:37]} 16. O-O {[%clk 0:01:44]}  O-O-O {[%clk 0:00:33]} 17. c4 {[%clk 0:01:35]}  Be6 {[%clk 0:00:33]} 18. Qxe4 {[%clk 0:01:35]}  g5 {[%clk 0:00:32]} 19. Bh2 {[%clk 0:01:34]}  Qb6 {[%clk 0:00:27]} 20. d5 {[%clk 0:01:20]}  f5 {[%clk 0:00:13]} 21. Qe2 {[%clk 0:01:12]}  cxd5 {[%clk 0:00:11]} 22. cxd5 {[%clk 0:01:11]}  Bxd5 {[%clk 0:00:10]} 23. Rac1+ {[%clk 0:01:06]}  Bc6 {[%clk 0:00:10]} 24. Nxc6 {[%clk 0:01:05]}  bxc6 {[%clk 0:00:10]} 25. Qe6+ {[%clk 0:00:38]}  Kb7 {[%clk 0:00:10]} 26. Qxf5 {[%clk 0:00:37]}  Bg7 {[%clk 0:00:09]} 27. Qf7+ {[%clk 0:00:35]}  Ka8 {[%clk 0:00:09]} 28. Qxg7 {[%clk 0:00:35]}  Rhf8 {[%clk 0:00:09]} 29. Qxh6 {[%clk 0:00:34]}  Rxf2 {[%clk 0:00:06]} 30. Rxf2 {[%clk 0:00:32]}  Rd2 {[%clk 0:00:06]} 31. Qf8+ {[%clk 0:00:27]}  Kb7 {[%clk 0:00:06]} 32. Qb8+ {[%clk 0:00:26]}  Ka6 {[%clk 0:00:03]} 33. Qxb6+ {[%clk 0:00:26]}  axb6 {[%clk 0:00:04]} 34. Rxd2 {[%clk 0:00:27]}  Kb5 {[%clk 0:00:03]} 35. b4 {[%clk 0:00:17]}  g4 {[%clk 0:00:04]} 36. hxg4 {[%clk 0:00:17]} 1-0


[Site "https://www.chess.com"]